bitfinex-derivatives/quotes_SOLF0:USTF0_20250117
["timestamp","ask_amount","ask_price","bid_price","bid_amount"]
[1737153811139,6.97877443,219.28,219.22,2.3925]
[1737153812341,6.97877443,219.28,219.27,4.5589]
[1737153820444,4.94,219.31,219.19,9.121]
[1737153820647,16.47687443,219.31,219.24,6.97877443]
[1737153821245,16.47687443,219.31,219.26,4.5591]
[1737153821543,16.47687443,219.31,219.24,6.97877443]
[1737153822544,16.47687443,219.31,219.29,4.5585]
[1737153823443,11.91877443,219.31,219.29,4.5585]
[1737153823844,6.97877443,219.31,219.29,4.5585]
[1737153824043,11.91877443,219.31,219.29,4.5585]
[1737153827546,11.91877443,219.31,219.21,6.97877443]
[1737153827751,6.97877443,219.29,219.27,4.5588]
[1737153827949,6.97877443,219.29,219.2,14.17607443]
[1737153828952,6.97877443,219.29,219.22,4.5598]
[1737153829154,6.97877443,219.29,219.2,14.17607443]
[1737153830654,6.97877443,219.29,219.28,4.5587]
[1737153833857,4.94,219.31,219.28,4.5587]
[1737153834058,4.94,219.31,219.29,4.5584]
[1737153834262,6.97877443,219.31,219.29,4.5584]
[1737153834760,4.94,219.33,219.29,4.5584]
[1737153834964,6.97877443,219.31,219.29,4.5584]
[1737153835153,85.32,219.38,219.23,6.97877443]
[1737153835351,6.97877443,219.33,219.23,6.97877443]
[1737153835557,6.97877443,219.34,219.25,6.97877443]
[1737153835757,6.97877443,219.34,219.32,4.5577]
[1737153835962,6.97877443,219.34,219.25,6.97877443]
[1737153836566,6.97877443,219.34,219.32,4.5577]
[1737153838364,6.97877443,219.34,219.33,4.5577]
[1737153841469,85.32,219.38,219.28,6.97877443]
[1737153841763,6.97877443,219.35,219.29,6.8966]
[1737153842266,91.80527885,219.46,219.3,6.97877443]
[1737153842467,6.97877443,219.37,219.29,6.8966]
[1737153842670,4.556,219.42,219.3,6.97877443]
[1737153842863,85.36,219.46,219.29,6.8966]
[1737153842864,6.97877443,219.4,219.32,6.97877443]
[1737153843469,6.97877443,219.4,219.39,4.5564]
[1737153845371,4.5556,219.43,219.39,4.5564]
[1737153845670,6.97877443,219.4,219.39,4.5564]
[1737153846074,4.5559,219.42,219.39,4.5564]
[1737153846271,6.97877443,219.4,219.39,4.5564]
[1737153847471,6.97877443,219.4,219.38,4.5566]
[1737153848770,6.97877443,219.4,219.29,6.8966]
[1737153848974,6.97877443,219.38,219.37,4.5568]
[1737153850867,6.97877443,219.39,219.38,4.5565]
[1737153851272,6.97877443,219.39,219.29,6.8966]
[1737153851473,6.97877443,219.37,219.33,4.5575]
[1737153852076,6.97877443,219.35,219.33,4.5575]
[1737153852372,6.97877443,219.35,219.25,4.5592]
[1737153852674,4.559,219.27,219.2,6.97877443]
[1737153853072,6.97877443,219.28,219.23,4.5597]
[1737153854080,11.53757443,219.28,219.23,4.5597]
[1737153856284,6.97877443,219.28,219.2,6.97877443]
[1737153857178,6.97877443,219.28,219.24,4.5594]
[1737153858980,6.97877443,219.28,219.19,6.97877443]
[1737153859285,6.97877443,219.28,219.25,4.5593]
[1737153860482,11.53767443,219.28,219.25,4.5594]
[1737153861082,6.97877443,219.28,219.18,4.7506]
[1737153861286,6.97877443,219.24,219.18,4.7506]
[1737153862282,4.92,219.3,219.18,4.7506]
[1737153862488,6.97877443,219.25,219.18,4.7506]
[1737153862989,6.97877443,219.25,219.18,2.3012]
[1737153863189,4.5595,219.25,219.21,4.5601]
[1737153863390,11.53827443,219.25,219.21,4.5601]
[1737153863785,4.5596,219.24,219.21,4.5601]
[1737153864489,4.92,219.3,219.21,4.5601]
[1737153864690,6.97877443,219.24,219.22,4.5599]
[1737153866493,6.97877443,219.24,219.23,4.5598]
[1737153867396,6.97877443,219.26,219.22,4.5598]
[1737153867591,6.97877443,219.26,219.19,6.97877443]
[1737153868496,6.97877443,219.26,219.25,4.5594]
[1737153872099,6.97877443,219.29,219.27,4.5589]
[1737153872589,85.34,219.32,219.23,6.97877443]
[1737153872793,92.31877443,219.32,219.23,6.97877443]
[1737153873402,6.97877443,219.32,219.23,6.97877443]
[1737153873999,6.97877443,219.32,219.31,4.5581]
[1737153875603,3.83429906,219.35,219.33,4.5576]
[1737153875800,3.83429906,219.35,219.25,6.97877443]
[1737153875801,6.97877443,219.34,219.25,6.97877443]
[1737153877207,6.97877443,219.34,219.32,4.5579]
[1737153877401,6.97877443,219.34,219.25,6.97877443]
[1737153877707,6.97877443,219.34,219.27,6.97877443]
[1737153877907,3.83429906,219.35,219.33,4.5577]
[1737153878105,3.83429906,219.35,219.27,6.97877443]
[1737153878304,3.83429906,219.35,219.29,6.97877443]
[1737153878506,85.36,219.4,219.36,4.5569]
[1737153878507,6.97877443,219.37,219.36,4.5569]
[1737153881113,6.97877443,219.39,219.38,4.5566]
[1737153881413,6.97877443,219.4,219.29,4.9083]
[1737153881815,6.97877443,219.4,219.33,6.97877443]
[1737153882316,6.97877443,219.4,219.35,4.5573]
[1737153882515,6.97877443,219.4,219.33,6.97877443]
[1737153883317,4.92,219.44,219.33,6.97877443]
[1737153883616,6.97877443,219.41,219.38,4.5565]
[1737153884213,6.97877443,219.41,219.4,4.5562]
[1737153886721,6.97877443,219.41,219.29,4.9083]
[1737153887014,6.97877443,219.39,219.37,4.5567]
[1737153888416,4.92,219.46,219.38,4.5567]
[1737153888721,6.97877443,219.41,219.38,4.5567]
[1737153889212,6.97877443,219.39,219.29,4.9083]
[1737153889411,6.97877443,219.39,219.37,4.5569]
[1737153892422,4.556,219.41,219.37,4.5569]
[1737153892721,6.97877443,219.39,219.37,4.5569]
[1737153898027,6.97877443,219.39,219.36,4.5569]
[1737153898230,6.97877443,219.39,219.31,6.97877443]
[1737153898927,6.97877443,219.39,219.36,4.5569]
[1737153900327,4.557,219.37,219.33,4.5575]
[1737153900827,4.557,219.37,219.3,6.97877443]
[1737153902029,4.557,219.37,219.34,4.5575]
[1737153902230,4.557,219.37,219.29,4.9083]
[1737153902429,4.557,219.37,219.34,4.5573]
[1737153903430,11.53577443,219.37,219.34,4.5573]
[1737153906031,11.53577443,219.37,219.35,4.5573]
[1737153907226,11.53577443,219.37,219.29,11.88707443]
[1737153907432,11.53577443,219.37,219.34,4.5575]
[1737153909234,6.97877443,219.37,219.31,4.558]
[1737153909435,6.97877443,219.37,219.29,11.88707443]
[1737153910130,6.97877443,219.37,219.34,4.5573]
[1737153912036,4.5567,219.38,219.34,4.5573]
[1737153912236,6.97877443,219.35,219.15,6.14077279]
[1737153912438,6.97877443,219.33,219.23,6.97877443]
[1737153913933,4.5581,219.32,219.27,4.5588]
[1737153914140,6.97877443,219.31,219.27,4.5588]
[1737153915738,11.53697443,219.31,219.27,4.5588]
[1737153916036,6.97877443,219.31,219.25,4.5592]
[1737153917134,4.5586,219.29,219.25,4.5592]
[1737153918439,4.5586,219.29,219.22,6.97877443]
[1737153918639,4.5586,219.29,219.26,4.5591]
[1737153919539,4.5586,219.29,219.25,4.5593]
[1737153919742,4.5587,219.28,219.25,4.5593]
[1737153925547,6.97877443,219.29,219.2,6.97877443]
[1737153926145,4.5593,219.26,219.22,4.5599]
[1737153927544,4.5593,219.26,219.23,4.5598]
[1737153928249,4.5593,219.26,219.18,6.97877443]
[1737153928443,4.5594,219.25,219.18,6.97877443]
[1737153928743,6.97877443,219.27,219.18,6.97877443]
[1737153929247,4.5596,219.24,219.2,4.5602]
[1737153930448,4.5596,219.24,219.18,6.97877443]
[1737153930649,4.5596,219.24,219.21,4.5602]
[1737153932650,4.5596,219.24,219.2,4.5603]
[1737153935954,4.5599,219.23,219.2,4.5603]
[1737153940958,4.5596,219.24,219.21,4.5602]
[1737153941160,6.97877443,219.23,219.21,4.5602]
[1737153946671,6.97877443,219.23,219.22,4.56]
[1737153946873,11.89877443,219.25,219.22,4.56]
[1737153947069,11.89877443,219.25,219.18,6.97877443]
[1737153947570,11.89877443,219.25,219.16,2.3462]
[1737153947771,11.89877443,219.25,219.18,6.97877443]
[1737153947968,6.97877443,219.25,219.18,6.97877443]
[1737153948170,6.97877443,219.25,219.24,4.5596]
[1737153948475,4.92,219.3,219.18,6.97877443]
[1737153948670,6.97877443,219.27,219.18,6.97877443]
[1737153949776,6.97877443,219.27,219.26,4.5591]
[1737153952577,6.97877443,219.27,219.13,2.4055]
[1737153952578,6.97877443,219.27,219.07,6.14077279]
[1737153952784,4.92,219.31,219.16,6.97877443]
[1737153952978,6.97877443,219.25,219.16,6.97877443]
[1737153953374,6.97877443,219.25,219.23,4.5596]
[1737153953575,4.92,219.33,219.18,6.97877443]
[1737153953871,6.97877443,219.27,219.18,6.97877443]
[1737153954369,11.53777443,219.27,219.24,4.5596]
[1737153957384,6.97877443,219.27,219.24,4.5596]
[1737153958286,11.53777443,219.27,219.23,4.5596]
[1737153959679,11.53777443,219.27,219.24,4.5596]
[1737153960186,6.97877443,219.27,219.24,4.5596]
[1737153960687,4.92,219.3,219.19,6.97877443]
[1737153960985,6.97877443,219.28,219.19,6.97877443]
[1737153961386,9.4783,219.3,219.26,4.559]
[1737153961688,6.97877443,219.3,219.21,6.97877443]
[1737153961988,6.97877443,219.3,219.27,4.5588]
[1737153962586,11.53707443,219.3,219.27,4.5588]
[1737153963687,6.97877443,219.28,219.14,4.7157]
[1737153963888,6.97877443,219.25,219.14,4.7157]
[1737153964082,6.97877443,219.25,219.16,6.97877443]
[1737153964286,6.97877443,219.25,219.18,4.5607]
[1737153964486,6.97877443,219.25,219.14,4.7157]
[1737153964686,6.97877443,219.23,219.14,4.7157]
[1737153965183,6.97877443,219.23,219.14,11.69447443]
[1737153965383,6.97877443,219.23,219.2,4.5604]
[1737153967083,6.97877443,219.23,219.14,4.7157]
[1737153967283,11.53857443,219.23,219.14,4.7157]
[1737153968081,6.97877443,219.23,219.19,4.5605]
[1737153968985,6.97877443,219.21,219.14,4.7157]
[1737153969188,6.97877443,219.19,219.14,4.7157]
[1737153969392,6.97877443,219.19,219.14,2.2731]
[1737153970393,6.97877443,219.19,219.13,2.3052]
[1737153971093,11.53947443,219.19,219.13,6.867]
[1737153971393,4.5607,219.19,219.13,2.3052]
[1737153971693,6.97877443,219.22,219.13,9.28397443]
[1737153971887,4.92,219.24,219.13,9.28397443]
[1737153972083,6.97877443,219.21,219.13,9.28397443]
[1737153972284,6.97877443,219.19,219.05,2.4687]
[1737153972588,6.97877443,219.17,219.09,6.97877443]
[1737153972991,4.5606,219.19,219.1,4.5623]
[1737153973192,4.5606,219.19,219.11,6.97877443]
[1737153974193,6.97877443,219.2,219.05,2.4687]
[1737153974392,7.1032,219.23,219.1,6.97877443]
[1737153974393,6.97877443,219.18,219.1,6.97877443]
[1737153974998,7.1032,219.23,219.12,6.97877443]
[1737153975294,6.97877443,219.19,218.99,2.381]
[1737153975496,11.53937443,219.19,219.09,6.97877443]
[1737153975897,4.92,219.26,219.11,6.97877443]
[1737153976097,11.53897443,219.21,219.16,4.5612]
[1737153976497,6.97877443,219.23,219.13,6.97877443]
[1737153976697,6.97877443,219.23,219.18,4.5608]
[1737153978595,11.53857443,219.23,219.17,4.5609]
[1737153979191,11.53857443,219.23,219.18,4.5608]
[1737153980600,11.53857443,219.23,219.0,4.862]
[1737153980601,6.97877443,219.23,219.2,4.5603]
[1737153980799,6.97877443,219.25,219.17,6.97877443]
[1737153981100,6.97877443,219.27,219.17,6.97877443]
[1737153982100,6.97877443,219.27,219.23,4.5597]
[1737153983701,6.97877443,219.25,219.23,4.5597]
[1737153985105,6.97877443,219.25,219.2,4.5604]
[1737153985300,4.5596,219.24,219.2,4.5604]
[1737153989207,11.53857443,219.23,219.14,6.97877443]
[1737153989599,11.53857443,219.23,219.18,4.5606]
[1737153989798,11.53857443,219.23,219.14,6.97877443]
[1737153990406,6.97877443,219.15,219.07,7.225]
[1737153990610,6.97877443,219.11,219.03,6.97877443]
[1737153990903,6.97877443,219.09,219.0,14.21477443]
[1737153992310,4.5629,219.08,219.03,4.5638]
[1737153992607,4.5629,219.08,219.0,14.21477443]
[1737153993006,6.97877443,219.09,219.0,14.21477443]
[1737153993207,6.97877443,219.04,218.87,6.14077279]
[1737153993403,6.97877443,219.04,218.96,6.97877443]
[1737153993609,6.97877443,219.04,219.01,4.5643]
[1737153993909,6.97877443,219.06,219.01,4.5643]
[1737153994105,6.97877443,219.04,219.01,4.5643]
[1737153994307,85.4,219.13,218.96,4.5653]
[1737153994308,11.54297443,219.02,218.96,4.5653]
[1737153994508,6.97877443,219.0,218.96,4.5653]
[1737153995210,11.54297443,219.02,218.96,4.5653]
[1737153995405,6.97877443,219.02,218.98,4.5649]
[1737153995602,6.97877443,219.02,218.94,6.97877443]
[1737153996010,6.97877443,219.02,218.99,4.5648]
[1737153996605,6.97877443,219.02,218.88,2.4066]
[1737153996811,4.92,219.05,218.92,6.97877443]
[1737153997012,6.97877443,219.0,218.92,6.97877443]
[1737153997217,6.97877443,219.0,218.97,4.5651]
[1737153998213,4.92,219.05,218.88,2.4066]
[1737153998414,6.97877443,219.0,218.96,4.5652]
[1737153998616,11.54297443,219.02,218.96,4.5652]
[1737153998816,11.54297443,219.02,218.92,6.97877443]
[1737153999717,11.54297443,219.02,218.88,2.4066]
[1737153999919,11.54297443,219.02,218.93,6.97877443]
[1737154000517,11.54297443,219.02,218.97,4.565]
[1737154002216,4.92,219.05,218.93,6.97877443]
[1737154002416,6.97877443,219.03,218.93,6.97877443]
[1737154004220,6.97877443,219.03,218.99,4.5646]
[1737154004621,11.54267443,219.03,218.99,4.5646]
[1737154007626,6.97877443,219.03,218.88,2.4066]
[1737154007826,6.97877443,219.01,218.94,6.97877443]
[1737154008520,6.97877443,219.01,218.98,4.565]
[1737154011129,11.54317443,219.01,218.98,4.565]
[1737154012426,6.97877443,219.01,218.98,4.565]
[1737154013322,4.92,219.05,218.94,6.97877443]
[1737154013523,11.54277443,219.03,218.99,4.5646]
[1737154013728,6.97877443,219.03,218.95,6.97877443]
[1737154014731,6.97877443,219.03,219.02,4.5641]
[1737154015030,6.97877443,219.03,218.95,6.97877443]
[1737154015931,6.97877443,219.03,219.01,4.5642]
[1737154016131,16.46247443,219.05,219.01,4.5642]
[1737154016328,6.97877443,219.03,219.01,4.5642]
[1737154016728,6.97877443,219.04,219.01,4.5642]
[1737154016924,4.5631,219.07,219.03,4.5639]
[1737154017123,6.97877443,219.07,218.99,6.97877443]
[1737154018630,3.47787315,219.08,218.99,6.97877443]
[1737154018932,6.97877443,219.07,218.99,6.97877443]
[1737154019835,6.97877443,219.07,219.01,4.5643]
[1737154020037,6.97877443,219.07,218.99,6.97877443]
[1737154021139,6.97877443,219.07,218.98,4.6927]
[1737154021333,11.54207443,219.07,218.98,11.67147443]
[1737154022238,11.54207443,219.07,219.03,4.5639]
[1737154022438,4.5634,219.06,218.98,11.67147443]
[1737154022929,4.5634,219.06,219.01,4.5642]
[1737154023929,4.5634,219.06,219.02,4.5641]
[1737154024131,6.97877443,219.07,218.98,11.67147443]
[1737154025234,10.45664758,219.08,219.0,6.97877443]
[1737154025538,10.45664758,219.08,218.98,4.6927]
[1737154025738,10.45664758,219.08,219.0,6.97877443]
[1737154027137,15.01954758,219.08,219.04,4.5636]
[1737154028435,10.45664758,219.08,219.0,6.97877443]
[1737154029035,15.01954758,219.08,219.04,4.5636]
[1737154029741,4.5631,219.07,219.04,4.5636]
[1737154030942,4.5631,219.07,219.0,6.97877443]
[1737154032249,4.5631,219.07,219.03,4.5639]
[1737154032641,3.47787315,219.08,219.07,4.5631]
[1737154032838,4.5624,219.11,219.07,4.5631]
[1737154033038,11.54117443,219.11,219.07,4.5631]
[1737154034754,6.97877443,219.11,219.07,4.5631]
[1737154035440,6.97877443,219.11,219.08,4.5628]
[1737154037954,11.54067443,219.13,219.08,4.5628]
[1737154038250,6.97877443,219.11,219.07,4.563]
[1737154038455,6.97877443,219.11,219.03,6.97877443]
[1737154038755,11.54107443,219.12,219.05,4.5634]
[1737154038953,11.54107443,219.12,219.03,6.97877443]
[1737154039255,11.54107443,219.12,219.05,6.97877443]
[1737154039553,11.54107443,219.12,219.08,4.5628]
[1737154041156,11.54107443,219.12,219.04,6.97877443]
[1737154041355,11.54107443,219.12,219.07,4.563]
[1737154042452,4.5623,219.11,219.07,4.563]
[1737154044255,4.563,219.08,219.0,6.97877443]
[1737154044751,4.563,219.08,219.02,4.564]
[1737154044952,4.5631,219.07,219.02,4.564]
[1737154045653,6.97877443,219.06,218.85,47.09378506]
[1737154045852,6.97877443,219.06,218.97,6.97877443]
[1737154046055,4.5642,219.02,218.97,11.54397443]
[1737154052056,4.5642,219.02,218.89,7.0575]
[1737154052258,4.5642,219.02,218.98,4.5649]
[1737154054963,4.5642,219.02,218.98,11.54367443]
[1737154055165,4.5642,219.02,218.98,4.5649]
[1737154056265,6.97877443,219.06,218.89,7.0575]
[1737154056462,4.5644,219.01,218.97,6.97877443]
[1737154056857,6.97877443,219.06,218.97,6.97877443]
[1737154057067,4.5646,219.0,218.97,11.54397443]
[1737154058670,4.5644,219.01,218.98,4.565]
[1737154058968,6.97877443,219.06,218.97,6.97877443]
[1737154060064,4.5643,219.02,218.98,4.5649]
[1737154062266,4.5643,219.02,218.99,4.5647]
[1737154063472,4.92,219.07,218.97,6.97877443]
[1737154063473,11.89877443,219.07,219.0,4.5646]
[1737154063665,6.97877443,219.07,219.0,4.5646]
[1737154064466,4.5639,219.04,219.0,4.5646]
[1737154067363,4.5635,219.05,219.01,4.5643]
[1737154075078,4.5633,219.07,219.03,4.5638]
[1737154075272,4.5633,219.07,219.0,6.97877443]
[1737154075576,95.87800146,219.11,219.02,6.97877443]
[1737154077070,95.87800146,219.11,219.05,4.5635]
[1737154077071,4.5629,219.09,219.05,4.5635]
[1737154080977,4.5629,219.09,219.06,4.5633]
[1737154081179,88.89922703,219.11,219.04,6.97877443]
[1737154081379,93.46162703,219.11,219.04,6.97877443]
[1737154081881,93.46162703,219.11,219.06,4.5633]
[1737154082581,100.44040146,219.11,219.06,4.5633]
[1737154082782,100.44040146,219.11,219.07,4.563]
[1737154083887,93.46162703,219.11,219.07,4.563]
[1737154086591,88.89922703,219.11,219.07,4.563]
[1737154086791,4.5625,219.1,219.07,4.563]
[1737154088794,93.46152703,219.11,219.07,4.563]
[1737154089296,88.89922703,219.11,219.04,6.97877443]
[1737154090397,93.46162703,219.11,219.07,4.563]
[1737154091102,4.5625,219.1,219.07,4.563]
[1737154091290,88.89922703,219.11,219.07,4.563]
[1737154091698,93.46162703,219.11,219.07,4.563]
[1737154092198,93.46162703,219.11,219.04,6.97877443]
[1737154092394,93.46162703,219.11,219.08,4.5628]
[1737154092797,8.00162703,219.11,219.08,4.5628]
[1737154094302,3.43922703,219.11,219.04,6.97877443]
[1737154094902,3.43922703,219.11,219.08,4.5627]
[1737154095501,3.43922703,219.11,219.04,6.97877443]
[1737154095502,3.43922703,219.11,219.09,4.5626]
[1737154103004,11.54127443,219.1,218.97,11.5861]
[1737154103200,6.97877443,219.1,219.0,6.97877443]
[1737154103602,6.97877443,219.01,218.84,77.21407301]
[1737154103807,6.97877443,218.95,218.88,6.34295038]
[1737154104005,6.97877443,218.97,218.88,6.34295038]
[1737154104404,6.97877443,218.97,218.88,13.32172481]
[1737154104605,11.87877443,218.98,218.88,6.97877443]
[1737154104809,4.9,218.98,218.9,6.97877443]
[1737154105205,4.9,218.98,218.81,11.9699]
[1737154105406,4.9,218.98,218.93,4.566]
[1737154105603,6.97877443,219.03,218.94,6.97877443]
[1737154106811,6.97877443,219.01,218.93,4.566]
[1737154108110,4.5646,219.0,218.93,4.566]
[1737154108714,6.97877443,219.03,218.94,6.97877443]
[1737154109709,11.87877443,219.05,218.96,6.97877443]
[1737154110809,11.87877443,219.05,218.81,220.6499]
[1737154111009,16.44237443,219.05,218.98,6.97877443]
[1737154111513,16.44237443,219.05,219.0,4.5645]
[1737154111714,9.4636,219.05,219.0,4.5645]
[1737154112013,4.5636,219.05,219.0,4.5645]
[1737154115115,4.5636,219.05,219.01,4.5644]
[1737154121810,4.5636,219.05,218.97,6.97877443]
[1737154122015,4.5636,219.05,219.02,4.5641]
[1737154123618,11.54227443,219.06,219.02,4.5641]
[1737154125018,11.54227443,219.06,219.01,4.5643]
[1737154125218,4.5635,219.06,219.01,4.5643]
[1737154125716,4.5636,219.05,219.01,4.5643]
[1737154126518,4.5633,219.07,219.03,4.5639]
[1737154126721,3.43922703,219.11,219.01,6.97877443]
[1737154126915,4.5629,219.08,219.04,4.5636]
[1737154127111,4.5629,219.08,219.01,6.97877443]
[1737154128922,4.5629,219.08,219.05,4.5635]
[1737154129817,4.5629,219.08,219.03,4.5638]
[1737154129818,4.5632,219.07,219.03,4.5638]
[1737154132319,6.97877443,219.09,219.01,6.97877443]
[1737154132719,10.41800146,219.11,219.01,6.97877443]
[1737154133018,4.5629,219.08,219.04,4.5637]
[1737154134326,4.5631,219.07,219.02,16.17677443]
[1737154134520,10.41800146,219.11,219.02,16.17677443]
[1737154136222,4.5634,219.06,219.02,16.17677443]
[1737154136723,4.5634,219.06,219.02,9.198]
[1737154137826,4.5634,219.06,219.02,16.17677443]
[1737154138323,4.5634,219.06,219.02,9.198]
[1737154138718,4.5634,219.06,219.02,16.17677443]
[1737154139924,4.5634,219.06,219.02,9.198]
[1737154142524,4.5634,219.06,219.03,4.5639]
[1737154147227,4.5634,219.06,219.04,4.5637]
[1737154147729,3.43922703,219.11,219.04,6.97877443]
[1737154147928,3.43922703,219.11,219.02,4.634]
[1737154148123,3.43922703,219.11,219.04,6.97877443]
[1737154149231,4.5629,219.08,219.05,4.5635]
[1737154152119,4.5629,219.08,219.06,6.97877443]
[1737154152321,3.43922703,219.11,219.06,6.97877443]
[1737154152529,8.00152703,219.11,219.08,4.5628]
[1737154153429,3.43922703,219.11,219.08,11.54157443]
[1737154154825,3.43922703,219.11,219.08,6.97877443]
[1737154155026,3.43922703,219.11,219.09,4.5626]
[1737154156534,3.43922703,219.11,219.08,4.5629]
[1737154157329,4.5621,219.12,219.08,4.5629]
[1737154158230,4.5621,219.12,219.08,11.54167443]
[1737154159832,4.5618,219.14,219.08,6.97877443]
[1737154161130,4.5618,219.14,219.1,11.54127443]
[1737154162031,2.2696,219.16,219.02,4.634]
[1737154162231,4.5621,219.12,219.09,6.97877443]
[1737154162737,4.5621,219.12,219.09,11.54147443]
[1737154162935,4.5619,219.13,219.09,11.54147443]
[1737154166946,9.24837443,219.16,219.09,11.54147443]
[1737154167147,4.5621,219.12,219.09,11.54147443]
[1737154167448,4.5621,219.12,219.09,6.97877443]
[1737154177653,6.97877443,219.2,219.11,6.97877443]
[1737154177960,0.83861192,219.19,219.11,6.97877443]
[1737154178354,4.5618,219.14,219.11,6.97877443]
[1737154179960,4.5618,219.14,219.11,11.54107443]
[1737154180956,4.5618,219.14,219.11,6.97877443]
[1737154183659,4.5614,219.16,219.12,4.562]
[1737154183858,4.5614,219.16,219.02,10.97895675]
[1737154184059,6.97877443,219.2,219.13,6.97877443]
[1737154184254,4.5608,219.18,219.14,4.5616]
[1737154184553,6.97877443,219.2,219.14,4.5616]
[1737154184865,4.561,219.18,219.14,4.5616]
[1737154186967,4.5604,219.2,219.16,4.5612]
[1737154187663,4.5601,219.22,219.17,4.5609]
[1737154188164,4.5608,219.18,219.14,11.54037443]
[1737154190463,6.97877443,219.24,219.16,4.5612]
[1737154190766,0.83840248,219.23,219.16,11.53997443]
[1737154190963,6.97877443,219.24,219.16,11.53997443]
[1737154191361,4.5601,219.22,219.16,11.53997443]
[1737154191564,6.97877443,219.24,219.16,6.97877443]
[1737154191769,6.97877443,219.24,219.17,4.561]
[1737154193073,4.5603,219.21,219.17,4.561]
[1737154196871,4.5604,219.2,219.17,4.561]
[1737154205171,6.97877443,219.24,219.07,4.9]
[1737154205473,4.5609,219.18,219.15,6.97877443]
[1737154205973,4.5606,219.2,219.15,11.54017443]
[1737154208271,4.5607,219.19,219.15,11.54017443]
[1737154210974,4.5607,219.19,219.15,4.5614]
[1737154211175,4.5607,219.19,219.16,6.97877443]
[1737154211667,4.5607,219.19,219.16,11.53997443]
[1737154213567,4.5607,219.19,219.16,4.5612]
[1737154214076,4.5607,219.19,219.16,11.53997443]
[1737154220475,4.5607,219.19,219.16,4.5612]
[1737154232284,6.97877443,219.24,219.14,6.97877443]
[1737154232483,4.5605,219.2,219.17,4.561]
[1737154234387,4.5605,219.2,219.18,6.97877443]
[1737154237980,8.22345196,219.25,219.18,6.97877443]
[1737154238183,4.5585,219.3,219.23,6.97877443]
[1737154238389,6.97877443,219.35,219.26,6.97877443]
[1737154238592,0.83806165,219.34,219.28,6.97877443]
[1737154238784,4.5577,219.33,219.28,11.53727443]
[1737154238982,6.97877443,219.35,219.28,6.97877443]
[1737154239185,0.83797629,219.34,219.28,6.97877443]
[1737154239490,4.5575,219.35,219.3,4.5583]
[1737154239792,0.83793715,219.34,219.3,4.5583]
[1737154240091,4.5575,219.35,219.3,11.53707443]
[1737154240284,4.5567,219.38,219.33,4.5577]
[1737154240491,0.83789979,219.37,219.32,6.97877443]
[1737154240889,4.5566,219.39,219.32,6.97877443]
[1737154241187,0.83786292,219.38,219.34,6.97877443]
[1737154241383,0.83786292,219.38,219.36,6.97877443]
[1737154241693,4.5558,219.42,219.36,4.5569]
[1737154241893,0.83773428,219.41,219.38,6.97877443]
[1737154242094,4.5558,219.43,219.38,6.97877443]
[1737154242286,0.83770832,219.42,219.38,6.97877443]
[1737154242888,4.5558,219.43,219.38,6.97877443]
[1737154245494,4.5558,219.43,219.38,11.53537443]
[1737154245794,3.44904021,219.44,219.4,6.97877443]
[1737154246595,8.00454021,219.44,219.4,6.97877443]
[1737154247695,3.44904021,219.44,219.4,11.53487443]
[1737154247896,3.44904021,219.44,219.42,6.97877443]
[1737154250501,6.97877443,219.49,219.42,11.53457443]
[1737154250697,0.83750436,219.48,219.42,11.53457443]
[1737154251498,4.5551,219.46,219.42,11.53457443]
[1737154252894,4.5551,219.46,219.44,6.97877443]
[1737154254703,4.5548,219.47,219.44,6.97877443]
[1737154254999,2.262,219.53,219.46,6.97877443]
[1737154255203,4.5544,219.49,219.46,6.97877443]
[1737154255404,4.5544,219.49,219.48,6.97877443]
[1737154255599,4.5544,219.49,219.46,6.97877443]
[1737154255903,4.5544,219.49,219.48,6.97877443]
[1737154261309,6.97877443,219.55,219.48,6.97877443]
[1737154261514,4.5542,219.5,219.48,6.97877443]
[1737154261810,3.44683195,219.56,219.48,6.97877443]
[1737154262010,0.83713076,219.55,219.5,6.97877443]
[1737154262311,3.44683195,219.56,219.52,6.97877443]
[1737154262912,4.5533,219.55,219.52,6.97877443]
[1737154263814,7.99983195,219.56,219.52,11.53247443]
[1737154264215,3.44683195,219.56,219.52,4.5537]
[1737154264417,3.44683195,219.56,219.53,11.53227443]
[1737154265717,3.44683195,219.56,219.55,6.97877443]